[Event "Titled Tuesday Blitz August 17 2021"]
[White "Real De Azua, Ernesto"]
[Black "Kukhmazov, Arsen"]
[WhiteFideId "108154"]
[BlackFideId "24108260"]
[WhiteElo "2476"]
[BlackElo "2453"]
[Result "1-0"]
[Round "04"]
[TimeControl "180+1"]
[Date "2021.08.17"]
[WhiteClock "0:00:04"]
[BlackClock "0:00:03"]

1. Nf3 {[%clk 0:03:00]}  d5 {[%clk 0:02:59]} 2. e3 {[%clk 0:02:59]}  Nf6 {[%clk 0:02:57]} 3. c4 {[%clk 0:03:00]}  c6 {[%clk 0:02:58]} 4. Nc3 {[%clk 0:02:59]}  e6 {[%clk 0:02:59]} 5. b3 {[%clk 0:02:59]}  Bd6 {[%clk 0:02:59]} 6. Bb2 {[%clk 0:02:59]}  O-O {[%clk 0:02:59]} 7. Be2 {[%clk 0:02:58]}  e5 {[%clk 0:03:00]} 8. cxd5 {[%clk 0:02:57]}  cxd5 {[%clk 0:03:00]} 9. Nb5 {[%clk 0:02:57]}  Nc6 {[%clk 0:03:01]} 10. Nxd6 {[%clk 0:02:58]}  Qxd6 {[%clk 0:03:02]} 11. d4 {[%clk 0:02:57]}  e4 {[%clk 0:03:00]} 12. Ne5 {[%clk 0:02:57]}  Ne7 {[%clk 0:02:57]} 13. O-O {[%clk 0:02:51]}  Ne8 {[%clk 0:02:55]} 14. h3 {[%clk 0:02:44]}  f6 {[%clk 0:02:50]} 15. Ng4 {[%clk 0:02:44]}  Nc6 {[%clk 0:02:42]} 16. Qd2 {[%clk 0:02:37]}  Be6 {[%clk 0:02:35]} 17. Rfc1 {[%clk 0:02:34]}  Nc7 {[%clk 0:02:35]} 18. a4 {[%clk 0:02:21]}  a5 {[%clk 0:02:35]} 19. Ba3 {[%clk 0:02:20]}  Nb4 {[%clk 0:02:36]} 20. Bxb4 {[%clk 0:02:02]}  axb4 {[%clk 0:02:37]} 21. Rc2 {[%clk 0:02:02]}  Bxg4 {[%clk 0:02:27]} 22. Bxg4 {[%clk 0:01:58]}  f5 {[%clk 0:02:27]} 23. Be2 {[%clk 0:01:57]}  Ne6 {[%clk 0:02:27]} 24. Rac1 {[%clk 0:01:50]}  Qe7 {[%clk 0:01:43]} 25. g3 {[%clk 0:01:36]}  g5 {[%clk 0:01:37]} 26. Kh1 {[%clk 0:00:55]}  Kg7 {[%clk 0:01:33]} 27. Rc5 {[%clk 0:00:51]}  Nxc5 {[%clk 0:01:31]} 28. dxc5 {[%clk 0:00:52]}  Rad8 {[%clk 0:01:16]} 29. Qxb4 {[%clk 0:00:49]}  f4 {[%clk 0:01:04]} 30. gxf4 {[%clk 0:00:42]}  gxf4 {[%clk 0:01:05]} 31. Rg1+ {[%clk 0:00:41]}  Kh8 {[%clk 0:00:53]} 32. Qd4+ {[%clk 0:00:23]}  Qf6 {[%clk 0:00:53]} 33. b4 {[%clk 0:00:21]}  Qxd4 {[%clk 0:00:33]} 34. exd4 {[%clk 0:00:21]}  e3 {[%clk 0:00:18]} 35. fxe3 {[%clk 0:00:14]}  fxe3 {[%clk 0:00:19]} 36. b5 {[%clk 0:00:07]}  Rf2 {[%clk 0:00:18]} 37. Re1 {[%clk 0:00:03]}  Ra8 {[%clk 0:00:11]} 38. c6 {[%clk 0:00:02]}  bxc6 {[%clk 0:00:12]} 39. bxc6 {[%clk 0:00:03]}  Kg7 {[%clk 0:00:05]} 40. Bg4 {[%clk 0:00:02]}  Ra7 {[%clk 0:00:04]} 41. Rxe3 {[%clk 0:00:02]}  Rff7 {[%clk 0:00:04]} 42. Rf3 {[%clk 0:00:01]}  Rfc7 {[%clk 0:00:03]} 43. Rf5 {[%clk 0:00:01]}  Rxc6 {[%clk 0:00:03]} 44. Rxd5 {[%clk 0:00:01]}  Rxa4 {[%clk 0:00:03]} 45. Rd7+ {[%clk 0:00:02]}  Kh6 {[%clk 0:00:02]} 46. Kg2 {[%clk 0:00:02]}  Rc2+ {[%clk 0:00:02]} 47. Kg3 {[%clk 0:00:03]}  Ra3+ {[%clk 0:00:03]} 48. Kh4 {[%clk 0:00:03]}  Rc4 {[%clk 0:00:03]} 49. Bf5 {[%clk 0:00:01]}  Ra7 {[%clk 0:00:03]} 50. Rxa7 {[%clk 0:00:01]}  Rxd4+ {[%clk 0:00:03]} 51. Bg4 {[%clk 0:00:02]}  Rd6 {[%clk 0:00:03]} 52. Rb7 {[%clk 0:00:02]}  Rf6 {[%clk 0:00:03]} 53. Rd7 {[%clk 0:00:02]}  Rc6 {[%clk 0:00:03]} 54. Rd5 {[%clk 0:00:02]}  Rb6 {[%clk 0:00:04]} 55. Rh5+ {[%clk 0:00:03]}  Kg6 {[%clk 0:00:04]} 56. Rg5+ {[%clk 0:00:04]}  Kh6 {[%clk 0:00:04]} 57. Rf5 {[%clk 0:00:04]}  Kg6 {[%clk 0:00:05]} 58. Rf4 {[%clk 0:00:04]}  Ra6 {[%clk 0:00:05]} 59. Kg3 {[%clk 0:00:05]}  h6 {[%clk 0:00:05]} 60. h4 {[%clk 0:00:05]}  Ra3+ {[%clk 0:00:06]} 61. Bf3 {[%clk 0:00:05]}  Ra5 {[%clk 0:00:06]} 62. Kg4 {[%clk 0:00:05]}  Rb5 {[%clk 0:00:04]} 63. Rc4 {[%clk 0:00:04]}  Rb6 {[%clk 0:00:04]} 64. Be4+ {[%clk 0:00:03]}  Kf6 {[%clk 0:00:04]} 65. Bf3 {[%clk 0:00:03]}  Ra6 {[%clk 0:00:04]} 66. Rf4+ {[%clk 0:00:03]}  Kg7 {[%clk 0:00:04]} 67. h5 {[%clk 0:00:03]}  Rf6 {[%clk 0:00:05]} 68. Re4 {[%clk 0:00:02]}  Ra6 {[%clk 0:00:05]} 69. Re7+ {[%clk 0:00:02]}  Kf6 {[%clk 0:00:05]} 70. Re3 {[%clk 0:00:03]}  Ra4+ {[%clk 0:00:04]} 71. Be4 {[%clk 0:00:03]}  Ra5 {[%clk 0:00:05]} 72. Bg6 {[%clk 0:00:03]}  Rg5+ {[%clk 0:00:05]} 73. Kf4 {[%clk 0:00:04]}  Ra5 {[%clk 0:00:05]} 74. Rb3 {[%clk 0:00:04]}  Ra4+ {[%clk 0:00:05]} 75. Kf3 {[%clk 0:00:04]}  Ra6 {[%clk 0:00:06]} 76. Rd3 {[%clk 0:00:04]}  Rb6 {[%clk 0:00:06]} 77. Rd8 {[%clk 0:00:04]}  Rb3+ {[%clk 0:00:06]} 78. Ke4 {[%clk 0:00:04]}  Rb4+ {[%clk 0:00:06]} 79. Ke3 {[%clk 0:00:05]}  Rb3+ {[%clk 0:00:06]} 80. Kd4 {[%clk 0:00:05]}  Rb4+ {[%clk 0:00:07]} 81. Kc3 {[%clk 0:00:05]}  Rb6 {[%clk 0:00:07]} 82. Rh8 {[%clk 0:00:05]}  Kg5 {[%clk 0:00:07]} 83. Rg8 {[%clk 0:00:05]}  Kf6 {[%clk 0:00:08]} 84. Kd4 {[%clk 0:00:05]}  Rd6+ {[%clk 0:00:07]} 85. Ke4 {[%clk 0:00:05]}  Re6+ {[%clk 0:00:07]} 86. Kf4 {[%clk 0:00:05]}  Ra6 {[%clk 0:00:08]} 87. Rh8 {[%clk 0:00:04]}  Ra4+ {[%clk 0:00:06]} 88. Be4 {[%clk 0:00:04]}  Kg7 {[%clk 0:00:02]} 89. Rh7+ {[%clk 0:00:05]}  Kg8 {[%clk 0:00:03]} 90. Rxh6 {[%clk 0:00:06]}  Ra1 {[%clk 0:00:03]} 91. Rb6 {[%clk 0:00:05]}  Rf1+ {[%clk 0:00:03]} 92. Kg5 {[%clk 0:00:04]}  Rg1+ {[%clk 0:00:03]} 93. Kf6 {[%clk 0:00:04]}  Rf1+ {[%clk 0:00:03]} 94. Bf5 {[%clk 0:00:04]} 1-0


[Site "https://www.chess.com"]

[Event "Titled Tuesday Blitz August 17 2021"]
[White "Rozhkov, Viacheslav"]
[Black "Korchmar, Vasiliy"]
[WhiteFideId "4181484"]
[BlackFideId "24131750"]
[WhiteElo "2324"]
[BlackElo "2370"]
[Result "1-0"]
[Round "04"]
[TimeControl "180+1"]
[Date "2021.08.17"]
[WhiteClock "0:00:47"]
[BlackClock "0:01:43"]

1. e4 {[%clk 0:02:55]}  c5 {[%clk 0:02:59]} 2. Nf3 {[%clk 0:02:55]}  d6 {[%clk 0:02:59]} 3. d4 {[%clk 0:02:55]}  cxd4 {[%clk 0:03:00]} 4. Nxd4 {[%clk 0:02:56]}  Nf6 {[%clk 0:03:01]} 5. Nc3 {[%clk 0:02:56]}  Nc6 {[%clk 0:03:01]} 6. Bc4 {[%clk 0:02:55]}  e6 {[%clk 0:03:01]} 7. Be3 {[%clk 0:02:52]}  a6 {[%clk 0:03:01]} 8. Qe2 {[%clk 0:02:52]}  Be7 {[%clk 0:03:01]} 9. O-O-O {[%clk 0:02:51]}  O-O {[%clk 0:03:01]} 10. f3 {[%clk 0:02:51]}  Qc7 {[%clk 0:02:59]} 11. g4 {[%clk 0:02:51]}  Na5 {[%clk 0:02:58]} 12. Bb3 {[%clk 0:02:50]}  b5 {[%clk 0:02:54]} 13. Kb1 {[%clk 0:02:42]}  b4 {[%clk 0:02:49]} 14. Na4 {[%clk 0:02:42]}  Nxb3 {[%clk 0:02:38]} 15. cxb3 {[%clk 0:02:41]}  d5 {[%clk 0:02:30]} 16. Rc1 {[%clk 0:02:16]}  Qd6 {[%clk 0:02:16]} 17. e5 {[%clk 0:01:52]}  Qxe5 {[%clk 0:02:16]} 18. Nc6 {[%clk 0:01:52]}  Qd6 {[%clk 0:02:17]} 19. Nxe7+ {[%clk 0:01:52]}  Qxe7 {[%clk 0:02:16]} 20. Bc5 {[%clk 0:01:53]}  Qe8 {[%clk 0:02:13]} 21. Bxf8 {[%clk 0:01:53]}  Qxf8 {[%clk 0:02:14]} 22. Nb6 {[%clk 0:01:46]}  Rb8 {[%clk 0:02:14]} 23. Nxc8 {[%clk 0:01:47]}  Rxc8 {[%clk 0:02:15]} 24. Qxa6 {[%clk 0:01:47]}  Ra8 {[%clk 0:02:15]} 25. Qb7 {[%clk 0:01:43]}  d4 {[%clk 0:02:13]} 26. Rc7 {[%clk 0:01:19]}  Nd5 {[%clk 0:02:08]} 27. Rxf7 {[%clk 0:01:18]}  Qxf7 {[%clk 0:01:44]} 28. Qxa8+ {[%clk 0:01:18]}  Qf8 {[%clk 0:01:44]} 29. Qxf8+ {[%clk 0:01:16]}  Kxf8 {[%clk 0:01:45]} 30. a4 {[%clk 0:01:16]}  Ne3 {[%clk 0:01:37]} 31. a5 {[%clk 0:01:11]}  Ke7 {[%clk 0:01:37]} 32. a6 {[%clk 0:01:09]}  Nd5 {[%clk 0:01:36]} 33. Kc2 {[%clk 0:01:08]}  Kd6 {[%clk 0:01:35]} 34. a7 {[%clk 0:01:04]}  Nb6 {[%clk 0:01:36]} 35. Kd3 {[%clk 0:01:01]}  Kd5 {[%clk 0:01:35]} 36. Ra1 {[%clk 0:01:00]}  Na8 {[%clk 0:01:36]} 37. Ra5+ {[%clk 0:00:59]}  Kc6 {[%clk 0:01:37]} 38. Kxd4 {[%clk 0:00:54]}  Kb6 {[%clk 0:01:38]} 39. Re5 {[%clk 0:00:54]}  Kxa7 {[%clk 0:01:36]} 40. Rxe6 {[%clk 0:00:52]}  Nb6 {[%clk 0:01:37]} 41. Re7+ {[%clk 0:00:51]}  Ka6 {[%clk 0:01:38]} 42. Rxg7 {[%clk 0:00:52]}  Nc8 {[%clk 0:01:39]} 43. Rxh7 {[%clk 0:00:51]}  Nd6 {[%clk 0:01:39]} 44. Rh6 {[%clk 0:00:51]}  Ka5 {[%clk 0:01:39]} 45. Rxd6 {[%clk 0:00:50]}  Kb5 {[%clk 0:01:40]} 46. g5 {[%clk 0:00:46]}  Ka5 {[%clk 0:01:41]} 47. g6 {[%clk 0:00:47]}  Kb5 {[%clk 0:01:41]} 48. g7 {[%clk 0:00:47]}  Ka5 {[%clk 0:01:42]} 49. g8=Q {[%clk 0:00:47]}  Kb5 {[%clk 0:01:43]} 50. Qd5# {[%clk 0:00:47]} 1-0


[Site "https://www.chess.com"]

[Event "Titled Tuesday Blitz August 17 2021"]
[White "Sadovsky, Artem"]
[Black "Mekhitarian, Krikor Sevag"]
[WhiteFideId "4155840"]
[BlackFideId "2107660"]
[WhiteElo "2442"]
[BlackElo "2598"]
[Result "0-1"]
[Round "04"]
[TimeControl "180+1"]
[Date "2021.08.17"]
[WhiteClock "0:00:01"]
[BlackClock "0:00:14"]

1. Nf3 {[%clk 0:03:00]}  g6 {[%clk 0:02:56]} 2. h4 {[%clk 0:02:59]}  Bg7 {[%clk 0:02:45]} 3. h5 {[%clk 0:02:59]}  e5 {[%clk 0:02:45]} 4. d3 {[%clk 0:02:55]}  d5 {[%clk 0:02:41]} 5. h6 {[%clk 0:02:46]}  Bf6 {[%clk 0:02:36]} 6. c4 {[%clk 0:02:46]}  dxc4 {[%clk 0:02:16]} 7. Qa4+ {[%clk 0:02:46]}  Nc6 {[%clk 0:02:16]} 8. Qxc4 {[%clk 0:02:47]}  Be6 {[%clk 0:02:16]} 9. Qa4 {[%clk 0:02:39]}  Ne7 {[%clk 0:02:14]} 10. Nc3 {[%clk 0:02:31]}  O-O {[%clk 0:02:13]} 11. Bg5 {[%clk 0:02:24]}  Bxg5 {[%clk 0:02:05]} 12. Nxg5 {[%clk 0:02:25]}  Nd4 {[%clk 0:01:48]} 13. Nxe6 {[%clk 0:02:02]}  Nxe6 {[%clk 0:01:47]} 14. g3 {[%clk 0:01:48]}  c6 {[%clk 0:01:39]} 15. Bg2 {[%clk 0:01:45]}  Nf5 {[%clk 0:01:31]} 16. Rd1 {[%clk 0:01:29]}  Re8 {[%clk 0:01:25]} 17. Ne4 {[%clk 0:01:19]}  Nd6 {[%clk 0:01:18]} 18. Nd2 {[%clk 0:01:07]}  Nd4 {[%clk 0:01:04]} 19. Rc1 {[%clk 0:00:53]}  Kh8 {[%clk 0:00:57]} 20. Nf3 {[%clk 0:00:36]}  Nxf3+ {[%clk 0:00:50]} 21. Bxf3 {[%clk 0:00:37]}  Nf5 {[%clk 0:00:50]} 22. Qb4 {[%clk 0:00:29]}  Qb6 {[%clk 0:00:39]} 23. Qxb6 {[%clk 0:00:26]}  axb6 {[%clk 0:00:40]} 24. a3 {[%clk 0:00:27]}  b5 {[%clk 0:00:39]} 25. Bg4 {[%clk 0:00:26]}  Nd6 {[%clk 0:00:30]} 26. e3 {[%clk 0:00:25]}  f5 {[%clk 0:00:30]} 27. Bf3 {[%clk 0:00:25]}  Kg8 {[%clk 0:00:30]} 28. Ke2 {[%clk 0:00:22]}  Kf7 {[%clk 0:00:31]} 29. Rcd1 {[%clk 0:00:18]}  Kf6 {[%clk 0:00:30]} 30. Bg2 {[%clk 0:00:11]}  Red8 {[%clk 0:00:30]} 31. d4 {[%clk 0:00:11]}  e4 {[%clk 0:00:26]} 32. f3 {[%clk 0:00:11]}  exf3+ {[%clk 0:00:26]} 33. Bxf3 {[%clk 0:00:11]}  Re8 {[%clk 0:00:27]} 34. Rd3 {[%clk 0:00:04]}  Re7 {[%clk 0:00:22]} 35. g4 {[%clk 0:00:03]}  f4 {[%clk 0:00:21]} 36. Kf2 {[%clk 0:00:02]}  fxe3+ {[%clk 0:00:20]} 37. Rxe3 {[%clk 0:00:03]}  Rxe3 {[%clk 0:00:20]} 38. Kxe3 {[%clk 0:00:04]}  Kg5 {[%clk 0:00:20]} 39. Be2 {[%clk 0:00:03]}  Re8+ {[%clk 0:00:20]} 40. Kd2 {[%clk 0:00:04]}  Ne4+ {[%clk 0:00:19]} 41. Ke1 {[%clk 0:00:02]}  Ng3 {[%clk 0:00:20]} 42. Rh2 {[%clk 0:00:02]}  Nxe2 {[%clk 0:00:18]} 43. Rxe2 {[%clk 0:00:03]}  Rxe2+ {[%clk 0:00:18]} 44. Kxe2 {[%clk 0:00:04]}  Kxg4 {[%clk 0:00:19]} 45. Ke3 {[%clk 0:00:02]}  Kg5 {[%clk 0:00:16]} 46. d5 {[%clk 0:00:01]}  cxd5 {[%clk 0:00:16]} 47. Kd4 {[%clk 0:00:01]}  Kxh6 {[%clk 0:00:13]} 48. Kc5 {[%clk 0:00:02]}  g5 {[%clk 0:00:13]} 49. Kb6 {[%clk 0:00:01]}  d4 {[%clk 0:00:13]} 50. Kxb7 {[%clk 0:00:02]}  d3 {[%clk 0:00:13]} 51. a4 {[%clk 0:00:02]}  bxa4 {[%clk 0:00:14]} 52. b4 {[%clk 0:00:01]}  axb3 {[%clk 0:00:14]} 0-1


[Site "https://www.chess.com"]

[Event "Titled Tuesday Blitz August 17 2021"]
[White "Sarana, Alexey"]
[Black "Khanin, Semen"]
[WhiteFideId "24133795"]
[BlackFideId "4111990"]
[WhiteElo "2646"]
[BlackElo "2521"]
[Result "0-1"]
[Round "04"]
[TimeControl "180+1"]
[Date "2021.08.17"]
[WhiteClock "0:00:02"]
[BlackClock "0:00:04"]

1. d4 {[%clk 0:02:47]}  Nf6 {[%clk 0:03:00]} 2. c4 {[%clk 0:02:47]}  e6 {[%clk 0:03:00]} 3. Nf3 {[%clk 0:02:47]}  d5 {[%clk 0:03:00]} 4. Nc3 {[%clk 0:02:47]}  Nbd7 {[%clk 0:03:00]} 5. Bf4 {[%clk 0:02:46]}  dxc4 {[%clk 0:02:54]} 6. e3 {[%clk 0:02:45]}  Nb6 {[%clk 0:02:53]} 7. Bxc4 {[%clk 0:02:42]}  Bd6 {[%clk 0:02:54]} 8. Bg3 {[%clk 0:02:41]}  Nxc4 {[%clk 0:02:46]} 9. Qa4+ {[%clk 0:02:40]}  c6 {[%clk 0:02:46]} 10. Qxc4 {[%clk 0:02:40]}  O-O {[%clk 0:02:40]} 11. Bxd6 {[%clk 0:02:23]}  Qxd6 {[%clk 0:02:40]} 12. Ne5 {[%clk 0:02:20]}  b6 {[%clk 0:02:31]} 13. Qxc6 {[%clk 0:01:33]}  Qxc6 {[%clk 0:02:30]} 14. Nxc6 {[%clk 0:01:34]}  Bb7 {[%clk 0:02:31]} 15. Ne5 {[%clk 0:01:29]}  Bxg2 {[%clk 0:02:30]} 16. Rg1 {[%clk 0:01:29]}  Bb7 {[%clk 0:02:30]} 17. Rc1 {[%clk 0:01:28]}  Rac8 {[%clk 0:02:29]} 18. f3 {[%clk 0:01:26]}  Nd5 {[%clk 0:02:20]} 19. Ke2 {[%clk 0:01:15]}  f6 {[%clk 0:01:42]} 20. Nd3 {[%clk 0:01:13]}  Kf7 {[%clk 0:01:36]} 21. e4 {[%clk 0:01:11]}  Nxc3+ {[%clk 0:01:35]} 22. Rxc3 {[%clk 0:01:10]}  Rxc3 {[%clk 0:01:27]} 23. bxc3 {[%clk 0:01:11]}  Ba6 {[%clk 0:01:27]} 24. Kd2 {[%clk 0:01:11]}  g5 {[%clk 0:01:18]} 25. Nb4 {[%clk 0:01:10]}  Bc4 {[%clk 0:01:16]} 26. Nc2 {[%clk 0:01:10]}  h6 {[%clk 0:01:07]} 27. Ne3 {[%clk 0:01:09]}  Ba6 {[%clk 0:01:06]} 28. h4 {[%clk 0:01:01]}  gxh4 {[%clk 0:00:52]} 29. Rh1 {[%clk 0:01:00]}  h5 {[%clk 0:00:53]} 30. Rxh4 {[%clk 0:01:00]}  Kg6 {[%clk 0:00:53]} 31. Ng2 {[%clk 0:00:58]}  e5 {[%clk 0:00:52]} 32. Ne3 {[%clk 0:00:56]}  Bc8 {[%clk 0:00:40]} 33. Rh2 {[%clk 0:00:46]}  Rh8 {[%clk 0:00:38]} 34. Ng2 {[%clk 0:00:44]}  Kg5 {[%clk 0:00:36]} 35. Nh4 {[%clk 0:00:43]}  Rd8 {[%clk 0:00:32]} 36. Ke3 {[%clk 0:00:40]}  Bd7 {[%clk 0:00:27]} 37. d5 {[%clk 0:00:28]}  Rc8 {[%clk 0:00:27]} 38. Kd2 {[%clk 0:00:28]}  Rc4 {[%clk 0:00:19]} 39. Kd3 {[%clk 0:00:17]}  Bb5 {[%clk 0:00:17]} 40. Kc2 {[%clk 0:00:16]}  a5 {[%clk 0:00:11]} 41. Nf5 {[%clk 0:00:15]}  Bd7 {[%clk 0:00:09]} 42. Nd6 {[%clk 0:00:12]}  Rc7 {[%clk 0:00:08]} 43. Kd2 {[%clk 0:00:12]}  h4 {[%clk 0:00:06]} 44. Kd3 {[%clk 0:00:11]}  h3 {[%clk 0:00:06]} 45. c4 {[%clk 0:00:11]}  Kf4 {[%clk 0:00:06]} 46. Rh1 {[%clk 0:00:10]}  Kxf3 {[%clk 0:00:06]} 47. Rb1 {[%clk 0:00:03]}  h2 {[%clk 0:00:05]} 48. Nf7 {[%clk 0:00:02]}  Kg2 {[%clk 0:00:04]} 49. Rb2+ {[%clk 0:00:02]}  Kg3 {[%clk 0:00:03]} 50. Rb1 {[%clk 0:00:03]}  Bh3 {[%clk 0:00:02]} 51. Nh6 {[%clk 0:00:03]}  Bg2 {[%clk 0:00:02]} 52. Ng8 {[%clk 0:00:02]}  h1=Q {[%clk 0:00:02]} 53. Rxh1 {[%clk 0:00:02]}  Bxh1 {[%clk 0:00:03]} 54. Nxf6 {[%clk 0:00:02]}  Kf4 {[%clk 0:00:03]} 55. d6 {[%clk 0:00:03]}  Rc6 {[%clk 0:00:04]} 56. Nd5+ {[%clk 0:00:02]}  Kg5 {[%clk 0:00:03]} 57. d7 {[%clk 0:00:02]}  Rd6 {[%clk 0:00:03]} 58. Ke3 {[%clk 0:00:02]}  Rxd7 {[%clk 0:00:04]} 59. Nxb6 {[%clk 0:00:03]}  Rc7 {[%clk 0:00:04]} 60. Kd3 {[%clk 0:00:03]}  Rc6 {[%clk 0:00:04]} 61. Nd5 {[%clk 0:00:03]}  Kg4 {[%clk 0:00:05]} 62. a3 {[%clk 0:00:03]}  Bg2 {[%clk 0:00:04]} 63. Ne3+ {[%clk 0:00:02]}  Kf3 {[%clk 0:00:05]} 64. c5 {[%clk 0:00:02]}  Rxc5 {[%clk 0:00:04]} 0-1


[Site "https://www.chess.com"]

[Event "Titled Tuesday Blitz August 17 2021"]
[White "Sengupta, Deep"]
[Black "Rodchenkov, Sergey D."]
[WhiteFideId "5008352"]
[BlackFideId "4168712"]
[WhiteElo "2347"]
[BlackElo "2306"]
[Result "1-0"]
[Round "04"]
[TimeControl "180+1"]
[Date "2021.08.18"]
[WhiteClock "0:00:06"]
[BlackClock "0:00:02"]

1. d4 {[%clk 0:03:00]}  d5 {[%clk 0:02:58]} 2. c4 {[%clk 0:03:00]}  dxc4 {[%clk 0:02:59]} 3. e4 {[%clk 0:02:59]}  e5 {[%clk 0:02:58]} 4. Nf3 {[%clk 0:02:59]}  exd4 {[%clk 0:02:58]} 5. Bxc4 {[%clk 0:02:59]}  Nc6 {[%clk 0:02:58]} 6. Nbd2 {[%clk 0:02:52]}  Nf6 {[%clk 0:02:46]} 7. O-O {[%clk 0:02:51]}  Be7 {[%clk 0:02:43]} 8. Nb3 {[%clk 0:02:49]}  O-O {[%clk 0:02:37]} 9. e5 {[%clk 0:02:37]}  Nd7 {[%clk 0:02:32]} 10. e6 {[%clk 0:02:27]}  fxe6 {[%clk 0:02:13]} 11. Bxe6+ {[%clk 0:02:17]}  Kh8 {[%clk 0:02:10]} 12. Nbxd4 {[%clk 0:02:11]}  Nxd4 {[%clk 0:02:08]} 13. Nxd4 {[%clk 0:02:10]}  Nf6 {[%clk 0:02:06]} 14. Be3 {[%clk 0:02:06]}  Qe8 {[%clk 0:01:41]} 15. Bxc8 {[%clk 0:01:59]}  Rxc8 {[%clk 0:01:42]} 16. Ne6 {[%clk 0:01:53]}  Rg8 {[%clk 0:01:39]} 17. Qb3 {[%clk 0:01:50]}  b6 {[%clk 0:01:33]} 18. Rfe1 {[%clk 0:01:47]}  Qg6 {[%clk 0:01:32]} 19. h3 {[%clk 0:01:43]}  Bd6 {[%clk 0:01:23]} 20. Bf4 {[%clk 0:01:40]}  Bxf4 {[%clk 0:01:16]} 21. Nxf4 {[%clk 0:01:39]}  Qf5 {[%clk 0:01:15]} 22. Ne6 {[%clk 0:01:32]}  c5 {[%clk 0:01:09]} 23. g4 {[%clk 0:01:18]}  Qg6 {[%clk 0:00:55]} 24. f4 {[%clk 0:00:57]}  c4 {[%clk 0:00:44]} 25. Qf3 {[%clk 0:00:52]}  Qf7 {[%clk 0:00:27]} 26. f5 {[%clk 0:00:51]}  Nd7 {[%clk 0:00:23]} 27. Re4 {[%clk 0:00:42]}  Qf6 {[%clk 0:00:22]} 28. Qc3 {[%clk 0:00:30]}  Qxc3 {[%clk 0:00:20]} 29. bxc3 {[%clk 0:00:30]}  Nf6 {[%clk 0:00:19]} 30. Rd4 {[%clk 0:00:30]}  h6 {[%clk 0:00:18]} 31. Rad1 {[%clk 0:00:30]}  Rge8 {[%clk 0:00:15]} 32. Kg2 {[%clk 0:00:28]}  g6 {[%clk 0:00:11]} 33. Nf4 {[%clk 0:00:17]}  gxf5 {[%clk 0:00:10]} 34. Rd6 {[%clk 0:00:16]}  Ng8 {[%clk 0:00:04]} 35. gxf5 {[%clk 0:00:15]}  Rf8 {[%clk 0:00:02]} 36. Ng6+ {[%clk 0:00:14]}  Kg7 {[%clk 0:00:03]} 37. Nxf8 {[%clk 0:00:15]}  Rxf8 {[%clk 0:00:04]} 38. Rd7+ {[%clk 0:00:14]}  Rf7 {[%clk 0:00:05]} 39. Rxf7+ {[%clk 0:00:14]}  Kxf7 {[%clk 0:00:06]} 40. Rd7+ {[%clk 0:00:15]}  Ne7 {[%clk 0:00:06]} 41. Rxa7 {[%clk 0:00:15]}  Kf6 {[%clk 0:00:07]} 42. Rb7 {[%clk 0:00:15]}  Nd5 {[%clk 0:00:07]} 43. Rh7 {[%clk 0:00:13]}  Kxf5 {[%clk 0:00:07]} 44. Rxh6 {[%clk 0:00:13]}  Nxc3 {[%clk 0:00:07]} 45. Rxb6 {[%clk 0:00:13]}  Nxa2 {[%clk 0:00:07]} 46. Rb2 {[%clk 0:00:13]}  Nc3 {[%clk 0:00:07]} 47. Rc2 {[%clk 0:00:12]}  Nd5 {[%clk 0:00:07]} 48. Kf3 {[%clk 0:00:11]}  c3 {[%clk 0:00:05]} 49. Ra2 {[%clk 0:00:11]}  Nb4 {[%clk 0:00:05]} 50. Ra5+ {[%clk 0:00:10]}  Kg6 {[%clk 0:00:05]} 51. Rc5 {[%clk 0:00:10]}  c2 {[%clk 0:00:05]} 52. Ke4 {[%clk 0:00:10]}  Kh6 {[%clk 0:00:03]} 53. Rc4 {[%clk 0:00:09]}  Na6 {[%clk 0:00:01]} 54. Rxc2 {[%clk 0:00:08]}  Nb8 {[%clk 0:00:02]} 55. Kf4 {[%clk 0:00:08]}  Nd7 {[%clk 0:00:01]} 56. Kg3 {[%clk 0:00:06]}  Kh7 {[%clk 0:00:02]} 57. Rc6 {[%clk 0:00:06]}  Kg7 {[%clk 0:00:02]} 58. Kf4 {[%clk 0:00:07]}  Kf7 {[%clk 0:00:02]} 59. Kg5 {[%clk 0:00:07]}  Nf8 {[%clk 0:00:03]} 60. Rc7+ {[%clk 0:00:06]}  Kg8 {[%clk 0:00:04]} 61. Rc8 {[%clk 0:00:06]}  Kf7 {[%clk 0:00:04]} 62. Ra8 {[%clk 0:00:06]}  Ne6+ {[%clk 0:00:03]} 63. Kg4 {[%clk 0:00:06]}  Ng7 {[%clk 0:00:03]} 64. h4 {[%clk 0:00:07]}  Kg6 {[%clk 0:00:02]} 65. Ra6+ {[%clk 0:00:07]}  Kh7 {[%clk 0:00:02]} 66. Kg5 {[%clk 0:00:06]} 1-0


[Site "https://www.chess.com"]

[Event "Titled Tuesday Blitz August 17 2021"]
[White "Seo, Jung Min"]
[Black "Lee, Qing Aun"]
[WhiteFideId "1734687"]
[BlackFideId "5804167"]
[WhiteElo "2486"]
[BlackElo "2023"]
[Result "1-0"]
[Round "04"]
[TimeControl "180+1"]
[Date "2021.08.17"]
[WhiteClock "0:01:44"]
[BlackClock "0:00:11"]

1. e4 {[%clk 0:03:00]}  e6 {[%clk 0:02:59]} 2. d4 {[%clk 0:03:00]}  d5 {[%clk 0:02:59]} 3. Nd2 {[%clk 0:02:59]}  Be7 {[%clk 0:02:58]} 4. Ngf3 {[%clk 0:02:59]}  Nf6 {[%clk 0:02:58]} 5. e5 {[%clk 0:02:58]}  Nfd7 {[%clk 0:02:58]} 6. Bd3 {[%clk 0:02:55]}  c5 {[%clk 0:02:58]} 7. c3 {[%clk 0:02:55]}  Nc6 {[%clk 0:02:58]} 8. O-O {[%clk 0:02:53]}  Qb6 {[%clk 0:02:57]} 9. dxc5 {[%clk 0:02:51]}  Nxc5 {[%clk 0:02:52]} 10. Bc2 {[%clk 0:02:51]}  Qc7 {[%clk 0:02:51]} 11. Qe2 {[%clk 0:02:51]}  h6 {[%clk 0:02:51]} 12. Nb3 {[%clk 0:02:50]}  a5 {[%clk 0:02:45]} 13. Re1 {[%clk 0:02:47]}  b6 {[%clk 0:02:40]} 14. Nbd4 {[%clk 0:02:41]}  Ba6 {[%clk 0:02:40]} 15. Qe3 {[%clk 0:02:41]}  g5 {[%clk 0:02:22]} 16. Nxc6 {[%clk 0:02:39]}  Qxc6 {[%clk 0:02:21]} 17. Nd4 {[%clk 0:02:40]}  Qc7 {[%clk 0:02:17]} 18. Qg3 {[%clk 0:02:37]}  a4 {[%clk 0:02:04]} 19. Rb1 {[%clk 0:02:35]}  O-O-O {[%clk 0:01:58]} 20. b4 {[%clk 0:02:35]}  axb3 {[%clk 0:01:58]} 21. axb3 {[%clk 0:02:35]}  h5 {[%clk 0:01:53]} 22. Ra1 {[%clk 0:02:28]}  h4 {[%clk 0:01:26]} 23. Qe3 {[%clk 0:02:27]}  Bb7 {[%clk 0:01:18]} 24. b4 {[%clk 0:02:22]}  Ne4 {[%clk 0:01:14]} 25. Nb5 {[%clk 0:02:19]}  Qd7 {[%clk 0:00:59]} 26. Qxb6 {[%clk 0:02:16]}  Rdg8 {[%clk 0:00:44]} 27. Ba4 {[%clk 0:02:07]}  Bd8 {[%clk 0:00:28]} 28. Qd4 {[%clk 0:02:01]}  Qe7 {[%clk 0:00:20]} 29. Na7+ {[%clk 0:01:55]}  Kb8 {[%clk 0:00:20]} 30. Nc6+ {[%clk 0:01:55]}  Bxc6 {[%clk 0:00:20]} 31. Bxc6 {[%clk 0:01:55]}  h3 {[%clk 0:00:13]} 32. Ra8+ {[%clk 0:01:54]}  Kc7 {[%clk 0:00:13]} 33. Ba4 {[%clk 0:01:44]}  hxg2 {[%clk 0:00:11]} 1-0


[Site "https://www.chess.com"]